Workbook

Sheet 지방도집계표
A1: 2020년도 도로 교통량 조사 결과 집계표(지방도 및 국가지원지방도)
A2: 노선별 | C2: 2020년 교통량 조사결과 (차종별 6시간) | AC2: 24시간 총조사결과
C3: 시간 | D3: 계 | E3: 1종 (승용) | G3: 2종 (버스) | I3: 3종 (소형트럭) | K3: 4종 (소형트럭) | M3: 5종 (중형트럭) | O3: 6종 (중형트럭) | Q3: 7종 (중형트럭) | S3: 8종 (대형트럭) | U3: 9종 (대형트럭) | W3: 10종 (대형트럭) | Y3: 11종 (대형트럭) | AA3: 12종 (대형트럭) | AC3: 시간 | AD3: 2019년 | AE3: 2020년 | AF3: 증감 | AG3: 증감율
E4: 상행 | F4: 하행 | G4: 상행 | H4: 하행 | I4: 상행 | J4: 하행 | K4: 상행 | L4: 하행 | M4: 상행 | N4: 하행 | O4: 상행 | P4: 하행 | Q4: 상행 | R4: 하행 | S4: 상행 | T4: 하행 | U4: 상행 | V4: 하행 | W4: 상행 | X4: 하행 | Y4: 상행 | Z4: 하행 | AA4: 상행 | AB4: 하행
A5: 합계 (5지점) | C5: 합계 | D5: =SUM(D8,D11,D14,D17,D20) -> 9,988 | E5: 3,551 | F5: 3,652 | G5: 134 | H5: 123 | I5: 943 | J5: 949 | K5: 153 | L5: 184 | M5: 65 | N5: 69 | O5: 33 | P5: 16 | Q5: 21 | R5: 9 | S5: 12 | T5: 11 | U5: 7 | V5: 3 | W5: 15 | X5: 16 | Y5: 4 | Z5: 8 | AA5: 9 | AB5: 1 | AC5: 합계 | AD5: =SUM(AD6:AD7) -> 21,657 | AE5: =SUM(AE6:AE7) -> 22,819 | AF5: =AE5-AD5 -> 1,162 | AG5: =AF5/AD5 -> 5.37%
C6: 주간 | D6: =SUM(D9,D12,D15,D18,D21) -> 4,586 | E6: 1,241 | F6: 1,942 | G6: 81 | H6: 63 | I6: 388 | J6: 501 | K6: 72 | L6: 125 | M6: 31 | N6: 42 | O6: 16 | P6: 12 | Q6: 13 | R6: 5 | S6: 7 | T6: 6 | U6: 2 | V6: 2 | W6: 6 | X6: 13 | Y6: 3 | Z6: 8 | AA6: 5 | AB6: 2 | AC6: 주간 (07~19) | AD6: =AD9+AD12+AD15+AD18+AD21 -> 17,795 | AE6: =AE9+AE12+AE15+AE18+AE21 -> 18,819 | AF6: =AE6-AD6 -> 1,024
C7: 야간 | D7: =SUM(D10,D13,D16,D19,D22) -> 5,407 | E7: 2,310 | F7: 1,710 | G7: 53 | H7: 60 | I7: 555 | J7: 448 | K7: 81 | L7: 59 | M7: 34 | N7: 27 | O7: 17 | P7: 4 | Q7: 8 | R7: 4 | S7: 5 | T7: 5 | U7: 5 | V7: 1 | W7: 9 | X7: 3 | Y7: 1 | Z7: 0 | AA7: 4 | AB7: 4 | AC7: 야간 (19~07) | AD7: =AD10+AD13+AD16+AD19+AD22 -> 3,862 | AE7: =AE10+AE13+AE16+AE19+AE22 -> 4,000 | AF7: 138
A8: 22-01 (나진<=>여수) 화련승강장 앞 | C8: 소계 | D8: =SUM(E8:AB8) -> 3,674 | E8: =SUM(E9:E10) -> 1,279 | F8: =SUM(F9:F10) -> 1,427 | G8: 26 | H8: 36 | I8: 395 | J8: 273 | K8: 29 | L8: 91 | M8: 25 | N8: 17 | O8: 12 | P8: 5 | Q8: 6 | R8: 1 | S8: 5 | T8: 2 | U8: 5 | V8: 1 | W8: 15 | X8: 12 | Y8: 3 | Z8: 7 | AA8: 2 | AB8: 0 | AC8: 소계 | AD8: =SUM(AD9:AD10) -> 7,622 | AE8: =SUM(AE9:AE10) -> 7,894 | AF8: 272 | AG8: =AF8/AD8 -> 4%
C9: 08~11 | D9: =SUM(E9:AB9) -> 1,470 | E9: 369 | F9: 714 | G9: 14 | H9: 20 | I9: 101 | J9: 116 | K9: 9 | L9: 77 | M9: 6 | N9: 8 | O9: 2 | P9: 4 | Q9: 4 | R9: 0 | S9: 0 | T9: 0 | U9: 0 | V9: 0 | W9: 6 | X9: 9 | Y9: 2 | Z9: 7 | AA9: 2 | AB9: 0 | AC9: 주간 (07~19) | AD9: 6,122 | AE9: 6,829 | AF9: 707
C10: 15~18 | D10: =SUM(E10:AB10) -> 2,204 | E10: 910 | F10: 713 | G10: 12 | H10: 16 | I10: 294 | J10: 157 | K10: 20 | L10: 14 | M10: 19 | N10: 9 | O10: 10 | P10: 1 | Q10: 2 | R10: 1 | S10: 5 | T10: 2 | U10: 5 | V10: 1 | W10: 9 | X10: 3 | Y10: 1 | Z10: 0 | AA10: 0 | AB10: 0 | AC10: 야간 (19~07) | AD10: 1,500 | AE10: 1,065 | AF10: -435
A11: 22-02 (소라<=>율촌) 소라면사무소 앞 | C11: 소계 | D11: =SUM(E11:AB11) -> 3,555 | E11: =SUM(E12:E13) -> 1,233 | F11: =SUM(F12:F13) -> 1,230 | G11: 81 | H11: 57 | I11: 252 | J11: 367 | K11: 106 | L11: 83 | M11: 31 | N11: 46 | O11: 14 | P11: 4 | Q11: 13 | R11: 7 | S11: 6 | T11: 9 | U11: 2 | V11: 2 | W11: 0 | X11: 3 | Y11: 1 | Z11: 1 | AA11: 7 | AB11: 0 | AC11: 소계 | AD11: =SUM(AD12:AD13) -> 9,445 | AE11: =SUM(AE12:AE13) -> 8,407 | AF11: -1,038 | AG11: -11%
C12: 08~11 | D12: =SUM(E12:AB12) -> 1,839 | E12: 578 | F12: 650 | G12: 52 | H12: 24 | I12: 152 | J12: 185 | K12: 57 | L12: 41 | M12: 23 | N12: 31 | O12: 8 | P12: 1 | Q12: 7 | R12: 4 | S12: 6 | T12: 6 | U12: 2 | V12: 2 | X12: 3 | Y12: 1 | Z12: 1 | AA12: 3 | AB12: 2 | AC12: 주간 (07~19) | AD12: 7,915 | AE12: 6,807 | AF12: -1,108
C13: 15~18 | D13: 1,721 | E13: 655 | F13: 580 | G13: 29 | H13: 33 | I13: 100 | J13: 182 | K13: 49 | L13: 42 | M13: 8 | N13: 15 | O13: 6 | P13: 3 | Q13: 6 | R13: 3 | S13: 0 | T13: 3 | U13: 0 | V13: 0 | W13: 0 | X13: 0 | Y13: 0 | Z13: 0 | AA13: 4 | AB13: 3 | AC13: 야간 (19~07) | AD13: 1,530 | AE13: 1,600 | AF13: 70
A14: 22-03 (장수<=>여수) 원포교차로 앞 | C14: 소계 | D14: =SUM(E14:AB14) -> 2,146 | E14: =SUM(E15:E16) -> 852 | F14: =SUM(F15:F16) -> 834 | G14: 14 | H14: 13 | I14: 188 | J14: 188 | K14: 13 | L14: 9 | M14: 9 | N14: 6 | O14: 7 | P14: 7 | Q14: 2 | R14: 1 | S14: 1 | T14: 0 | U14: 0 | V14: 0 | W14: 0 | X14: 1 | Y14: 0 | Z14: 0 | AA14: 0 | AB14: 1 | AC14: 소계 | AD14: =SUM(AD15:AD16) -> 3,412 | AE14: =SUM(AE15:AE16) -> 5,325 | AF14: 1,913 | AG14: 56%
C15: 08~11 | D15: 940 | E15: 194 | F15: 500 | G15: 9 | H15: 10 | I15: 66 | J15: 126 | K15: 5 | L15: 7 | M15: 2 | N15: 3 | O15: 6 | P15: 7 | Q15: 2 | R15: 1 | S15: 1 | T15: 0 | U15: 0 | V15: 0 | W15: 0 | X15: 1 | Y15: 0 | Z15: 0 | AA15: 0 | AB15: 0 | AC15: 주간 (07~19) | AD15: 2,784 | AE15: 4,223 | AF15: 1,439
C16: 15~18 | D16: 1,206 | E16: 658 | F16: 334 | G16: 5 | H16: 3 | I16: 122 | J16: 62 | K16: 8 | L16: 2 | M16: 7 | N16: 3 | O16: 1 | P16: 0 | Q16: 0 | R16: 0 | S16: 0 | T16: 0 | U16: 0 | V16: 0 | W16: 0 | X16: 0 | Y16: 0 | Z16: 0 | AA16: 0 | AB16: 1 | AC16: 야간 (19~07) | AD16: 628 | AE16: 1,102 | AF16: 474
A17: 863-01 (일반77<=>서촌) 이목마을승강장 | C17: 소계 | D17: 209 | E17: =SUM(E18:E19) -> 75 | F17: =SUM(F18:F19) -> 51 | G17: 6 | H17: 7 | I17: 35 | J17: 32 | K17: 2 | L17: 1 | M17: 0 | N17: 0 | O17: 0 | P17: 0 | Q17: 0 | R17: 0 | S17: 0 | T17: 0 | U17: 0 | V17: 0 | W17: 0 | X17: 0 | Y17: 0 | Z17: 0 | AA17: 0 | AB17: 0 | AC17: 소계 | AD17: =SUM(AD18:AD19) -> 588 | AE17: =SUM(AE18:AE19) -> 439 | AF17: -149 | AG17: -25%
C18: 08~11 | D18: 88 | E18: 38 | F18: 13 | G18: 3 | H18: 4 | I18: 14 | J18: 15 | K18: 1 | L18: 0 | M18: 0 | N18: 0 | O18: 0 | P18: 0 | Q18: 0 | R18: 0 | S18: 0 | T18: 0 | U18: 0 | V18: 0 | W18: 0 | X18: 0 | Y18: 0 | Z18: 0 | AA18: 0 | AB18: 0 | AC18: 주간 (07~19) | AD18: 466 | AE18: 352 | AF18: -114
C19: 15~18 | D19: 121 | E19: 37 | F19: 38 | G19: 3 | H19: 3 | I19: 21 | J19: 17 | K19: 1 | L19: 1 | M19: 0 | N19: 0 | O19: 0 | P19: 0 | Q19: 0 | R19: 0 | S19: 0 | T19: 0 | U19: 0 | V19: 0 | W19: 0 | X19: 0 | Y19: 0 | Z19: 0 | AA19: 0 | AB19: 0 | AC19: 야간 (19~07) | AD19: 122 | AE19: 87 | AF19: -35
A20: 863-04 (소라<=>서촌) 대옥마을승강장 | C20: 소계 | D20: 404 | E20: =SUM(E21:E22) -> 112 | F20: =SUM(F21:F22) -> 110 | G20: 7 | H20: 10 | I20: 73 | J20: 89 | K20: 3 | L20: 0 | M20: 0 | N20: 0 | O20: 0 | P20: 0 | Q20: 0 | R20: 0 | S20: 0 | T20: 0 | U20: 0 | V20: 0 | W20: 0 | X20: 0 | Y20: 0 | Z20: 0 | AA20: 0 | AB20: 0 | AC20: 소계 | AD20: =SUM(AD21:AD22) -> 590 | AE20: =SUM(AE21:AE22) -> 754 | AF20: 164 | AG20: 28%
C21: 08~11 | D21: 249 | E21: 62 | F21: 65 | G21: 3 | H21: 5 | I21: 55 | J21: 59 | K21: 0 | L21: 0 | M21: 0 | N21: 0 | O21: 0 | P21: 0 | Q21: 0 | R21: 0 | S21: 0 | T21: 0 | U21: 0 | V21: 0 | W21: 0 | X21: 0 | Y21: 0 | Z21: 0 | AA21: 0 | AB21: 0 | AC21: 주간 (07~19) | AD21: 508 | AE21: 608 | AF21: 100
C22: 15~18 | D22: 155 | E22: 50 | F22: 45 | G22: 4 | H22: 5 | I22: 18 | J22: 30 | K22: 3 | L22: 0 | M22: 0 | N22: 0 | O22: 0 | P22: 0 | Q22: 0 | R22: 0 | S22: 0 | T22: 0 | U22: 0 | V22: 0 | W22: 0 | X22: 0 | Y22: 0 | Z22: 0 | AA22: 0 | AB22: 0 | AC22: 야간 (19~07) | AD22: 82 | AE22: 146 | AF22: 64
Z28: `

Sheet 시도집계표
A1: 2020년도 도로 교통량 조사 결과 집계표(지방도 및 국가지원지방도)
A2: 노선별 | C2: 2020년 교통량 조사결과 (차종별 6시간) | AC2: 24시간 총조사결과
C3: 시간 | D3: 계 | E3: 1종 (승용) | G3: 2종 (버스) | I3: 3종 (소형트럭) | K3: 4종 (소형트럭) | M3: 5종 (중형트럭) | O3: 6종 (중형트럭) | Q3: 7종 (중형트럭) | S3: 8종 (대형트럭) | U3: 9종 (대형트럭) | W3: 10종 (대형트럭) | Y3: 11종 (대형트럭) | AA3: 12종 (대형트럭) | AC3: 시간 | AD3: 2019년 | AE3: 2020년 | AF3: 증감 | AG3: 증감율
E4: 상행 | F4: 하행 | G4: 상행 | H4: 하행 | I4: 상행 | J4: 하행 | K4: 상행 | L4: 하행 | M4: 상행 | N4: 하행 | O4: 상행 | P4: 하행 | Q4: 상행 | R4: 하행 | S4: 상행 | T4: 하행 | U4: 상행 | V4: 하행 | W4: 상행 | X4: 하행 | Y4: 상행 | Z4: 하행 | AA4: 상행 | AB4: 하행
A5: 합 계 (18지점) | C5: 합계 | D5: =SUM(D6:D7) -> 14,346 | E5: =SUM(E6:E7) -> 4,667 | F5: =SUM(F6:F7) -> 4,549 | G5: 363 | H5: 333 | I5: 1,461 | J5: 1,389 | K5: 152 | L5: 141 | M5: 377 | N5: 374 | O5: 139 | P5: 164 | Q5: 67 | R5: 63 | S5: 4 | T5: 6 | U5: 4 | V5: 6 | W5: 24 | X5: 33 | Y5: 15 | Z5: 12 | AA5: 1 | AB5: 2 | AC5: 합계 | AD5: =SUM(AD6:AD7) -> 32,303 | AE5: =SUM(AE6:AE7) -> 31,398 | AF5: =AE5-AD5 -> -905 | AG5: =AF5/AD5 -> -2.80%
C6: 주간 | D6: =SUM(E6:AB6) -> 6,715 | E6: =SUM(E9,E12,E15,E18,E21,E24,E27,E30,E33,E36,E39,E42,E45,E48,E51,E54,E57,E60) -> 1,934 | F6: 2,221 | G6: 164 | H6: 164 | I6: 706 | J6: 708 | K6: 75 | L6: 72 | M6: 194 | N6: =SUM(N9,N12,N15,N18,N21,N24,N27,N30,N33,N36,N39,N42,N45,N48,N51,N54,N57,N60) -> 166 | O6: 85 | P6: 94 | Q6: 42 | R6: 23 | S6: 2 | T6: 3 | U6: 2 | V6: 3 | W6: 16 | X6: 15 | Y6: 14 | Z6: 10 | AA6: 0 | AB6: 2 | AC6: 주간 07~19 | AD6: =SUM(AD9,AD12,AD15,AD18,AD21,AD24,AD27,AD30,AD33,AD36,AD39,AD42,AD45,AD48,AD51,AD54,AD57,AD60) -> 27,225 | AE6: =AE9+AE12+AE15+AE18+AE21+AE24+AE27+AE30+AE33+AE36+AE39+AE42+AE45+AE48+AE51+AE54+AE57+AE60 -> 26,411 | AF6: =AE6-AD6 -> -814 | AG6: =AF6/AD6 -> -3%
C7: 야간 | D7: =SUM(E7:AB7) -> 7,631 | E7: =SUM(E10,E13,E16,E19,E22,E25,E28,E31,E34,E37,E40,E43,E46,E49,E52,E55,E58,E61) -> 2,733 | F7: 2,328 | G7: 199 | H7: 169 | I7: 755 | J7: 681 | K7: 77 | L7: 69 | M7: 183 | N7: =SUM(N10,N13,N16,N19,N22,N25,N28,N31,N34,N37,N40,N43,N46,N49,N52,N55,N58,N61) -> 208 | O7: 54 | P7: 70 | Q7: 25 | R7: 40 | S7: 2 | T7: 3 | U7: 2 | V7: 3 | W7: 8 | X7: 18 | Y7: 1 | Z7: 2 | AA7: 1 | AB7: 0 | AC7: 야간 19~07 | AD7: =SUM(AD10,AD13,AD16,AD19,AD22,AD25,AD28,AD31,AD34,AD37,AD40,AD43,AD46,AD49,AD52,AD55,AD58,AD61) -> 5,078 | AE7: =AE10+AE13+AE16+AE19+AE22+AE25+AE28+AE31+AE34+AE37+AE40+AE43+AE46+AE49+AE52+AE55+AE58+AE61 -> 4,987 | AF7: -91 | AG7: =AF7/AD7 -> -2%
A8: 1호 | B8: 36-02-01 (임포-죽포) 영농조합법인 앞 | C8: 소계 | D8: =SUM(E8:AB8) -> 1,103 | E8: =SUM(E9:E10) -> 355 | F8: 428 | G8: 15 | H8: 15 | I8: 104 | J8: 135 | K8: 7 | L8: 12 | M8: 2 | N8: =SUM(N9:N10) -> 3 | O8: 13 | P8: 14 | Q8: 0 | R8: 0 | S8: 0 | T8: 0 | U8: 0 | V8: 0 | W8: 0 | X8: 0 | Y8: 0 | Z8: 0 | AA8: 0 | AB8: 0 | AC8: 소계 | AD8: =SUM(AD9:AD10) -> 2,295 | AE8: =SUM(AE9:AE10) -> 2,665 | AF8: 370 | AG8: 16%
C9: 08~11 | D9: =SUM(E9:AB9) -> 480 | E9: 101 | F9: 223 | G9: 7 | H9: 9 | I9: 42 | J9: 69 | K9: 1 | L9: 9 | M9: 0 | N9: 0 | O9: 9 | P9: 10 | AC9: 주간 07~19 | AD9: 1,955 | AE9: 2,207 | AF9: 252 | AG9: 13%
C10: 15~18 | D10: =SUM(E10:AB10) -> 623 | E10: 254 | F10: 205 | G10: 8 | H10: 6 | I10: 62 | J10: 66 | K10: 6 | L10: 3 | M10: 2 | N10: 3 | O10: 4 | P10: 4 | AC10: 야간 19~07 | AD10: 340 | AE10: 458 | AF10: 118 | AG10: 35%
A11: 2호 | B11: 36-02-02 (신기⇔대율) 부영슈퍼 앞 | C11: 소계 | D11: =SUM(E11:AB11) -> 264 | E11: =SUM(E12:E13) -> 79 | F11: =SUM(F12:F13) -> 78 | G11: 13 | H11: 13 | I11: 38 | J11: 40 | K11: 1 | L11: 2 | M11: 0 | N11: 0 | O11: 0 | P11: 0 | Q11: 0 | R11: 0 | S11: 0 | T11: 0 | U11: 0 | V11: 0 | W11: 0 | X11: 0 | Y11: 0 | Z11: 0 | AA11: 0 | AB11: 0 | AC11: 소계 | AD11: =SUM(AD12:AD13) -> 635 | AE11: =SUM(AE12:AE13) -> 663 | AF11: 28 | AG11: 4%
C12: 08~11 | D12: =SUM(E12:AB12) -> 129 | E12: 35 | F12: 42 | G12: 7 | H12: 7 | I12: 16 | J12: 21 | K12: 0 | L12: 1 | AC12: 주간 07~19 | AD12: 543 | AE12: 541 | AF12: -2 | AG12: -0%
C13: 15~18 | D13: =SUM(E13:AB13) -> 135 | E13: 44 | F13: 36 | G13: 6 | H13: 6 | I13: 22 | J13: 19 | K13: 1 | L13: 1 | AC13: 야간 19~07 | AD13: 92 | AE13: 122 | AF13: 30 | AG13: 33%
A14: 4호 | B14: 36-02-03 (진두-하동) 나폴리팬션 앞 | C14: 소계 | D14: 523 | E14: =SUM(E15:E16) -> 216 | F14: =SUM(F15:F16) -> 196 | G14: 9 | H14: 10 | I14: 51 | J14: 36 | K14: 3 | L14: 0 | M14: 2 | N14: 0 | O14: 0 | P14: 0 | Q14: 0 | R14: 0 | S14: 0 | T14: 0 | U14: 0 | V14: 0 | W14: 0 | X14: 0 | Y14: 0 | Z14: 0 | AA14: 0 | AB14: 0 | AC14: 소계 | AD14: =SUM(AD15:AD16) -> 1,761 | AE14: =SUM(AE15:AE16) -> 1,407 | AF14: -354 | AG14: -20%
C15: 08~11 | D15: 200 | E15: 66 | F15: 72 | G15: 5 | H15: 6 | I15: 28 | J15: 21 | K15: 0 | L15: 0 | M15: 2 | N15: 0 | AC15: 주간 07~19 | AD15: 1,277 | AE15: 1,014 | AF15: -263 | AG15: =AF15/AD15 -> -21%
C16: 15~18 | D16: 323 | E16: 150 | F16: 124 | G16: 4 | H16: 4 | I16: 23 | J16: 15 | K16: 3 | L16: 0 | AC16: 야간 19~07 | AD16: 484 | AE16: 393 | AF16: -91 | AG16: -19%
A17: 5호 | B17: 36-02-04 (송시-도실) 돌산마트 앞 | C17: 소계 | D17: 1,674 | E17: =SUM(E18:E19) -> 422 | F17: =SUM(F18:F19) -> 391 | G17: 19 | H17: 22 | I17: 226 | J17: 217 | K17: 41 | L17: 33 | M17: 92 | N17: 121 | O17: 14 | P17: 24 | Q17: 18 | R17: 12 | S17: 2 | T17: 4 | U17: 3 | V17: 2 | W17: 3 | X17: 3 | Y17: 1 | Z17: 2 | AA17: 0 | AB17: 2 | AC17: 소계 | AD17: =SUM(AD18:AD19) -> 4,755 | AE17: =SUM(AE18:AE19) -> 3,813 | AF17: -942 | AG17: -20%
C18: 08~11 | D18: 669 | E18: 157 | F18: 218 | G18: 8 | H18: 12 | I18: 102 | J18: 112 | K18: 9 | L18: 8 | M18: 7 | N18: 5 | O18: 6 | P18: 14 | Q18: 3 | R18: 0 | S18: 0 | T18: 2 | U18: 1 | V18: 1 | W18: 0 | X18: 1 | Y18: 0 | Z18: 1 | AA18: 0 | AB18: 2 | AC18: 주간 07~19 | AD18: 4,038 | AE18: 3,060 | AF18: -978 | AG18: -24%
C19: 15~18 | D19: 1,005 | E19: 265 | F19: 173 | G19: 11 | H19: 10 | I19: 124 | J19: 105 | K19: 32 | L19: 25 | M19: 85 | N19: 116 | O19: 8 | P19: 10 | Q19: 15 | R19: 12 | S19: 2 | T19: 2 | U19: 2 | V19: 1 | W19: 3 | X19: 2 | Y19: 1 | Z19: 1 | AA19: 0 | AB19: 0 | AC19: 야간 19~07 | AD19: 717 | AE19: 753 | AF19: 36 | AG19: 5%
A20: 7호 | B20: 36-02-05 (둔전-굴전) 해오름팬션 앞 | C20: 소계 | D20: 573 | E20: =SUM(E21:E22) -> 163 | F20: =SUM(F21:F22) -> 177 | G20: 8 | H20: 7 | I20: 54 | J20: 54 | K20: 4 | L20: 2 | M20: 52 | N20: 52 | O20: 0 | P20: 0 | Q20: 0 | R20: 0 | S20: 0 | T20: 0 | U20: 0 | V20: 0 | W20: 0 | X20: 0 | Y20: 0 | Z20: 0 | AA20: 0 | AB20: 0 | AC20: 소계 | AD20: =SUM(AD21:AD22) -> 1,391 | AE20: =SUM(AE21:AE22) -> 1,366 | AF20: =AE20-AD20 -> -25 | AG20: =AF20/AD20 -> -2% | AH20: 변경
C21: 08~11 | D21: 284 | E21: 71 | F21: 74 | G21: 6 | H21: 4 | I21: 33 | J21: 33 | K21: 2 | L21: 2 | M21: 26 | N21: 33 | AC21: 주간 07~19 | AD21: 1,137 | AE21: 1,159 | AF21: 22 | AG21: 2%
C22: 15~18 | D22: 289 | E22: 92 | F22: 103 | G22: 2 | H22: 3 | I22: 21 | J22: 21 | K22: 2 | L22: 0 | M22: 26 | N22: 19 | AC22: 야간 19~07 | AD22: 254 | AE22: 207 | AF22: -47 | AG22: -19%
A23: 8호 | B23: 36-02-06 (풍류-내기) 유로조경 앞 | C23: 소계 | D23: 1,196 | E23: =SUM(E24:E25) -> 409 | F23: =SUM(F24:F25) -> 415 | G23: 21 | H23: 24 | I23: 144 | J23: 116 | K23: 5 | L23: 10 | M23: 10 | N23: 8 | O23: 12 | P23: 18 | Q23: 2 | R23: 2 | S23: 0 | T23: 0 | U23: 0 | V23: 0 | W23: 0 | X23: 0 | Y23: 0 | Z23: 0 | AA23: 0 | AB23: 0 | AC23: 소계 | AD23: =SUM(AD24:AD25) -> 2,073 | AE23: =SUM(AE24:AE25) -> 2,368 | AF23: 295 | AG23: 14%
C24: 08~11 | D24: 567 | E24: 217 | F24: 180 | G24: 10 | H24: 13 | I24: 67 | J24: 46 | K24: 4 | L24: 6 | M24: 5 | N24: 4 | O24: 5 | P24: 8 | Q24: 1 | R24: 1 | AC24: 주간 07~19 | AD24: 1,846 | AE24: 2,105 | AF24: 259 | AG24: 14%
C25: 15~18 | D25: 629 | E25: 192 | F25: 235 | G25: 11 | H25: 11 | I25: 77 | J25: 70 | K25: 1 | L25: 4 | M25: 5 | N25: 4 | O25: 7 | P25: 10 | Q25: 1 | R25: 1 | AC25: 야간 19~07 | AD25: 227 | AE25: 263 | AF25: 36 | AG25: 16%
A26: 10호 | B26: 36-02-07 (달천-대포) 방앗간가든 앞 | C26: 소계 | D26: 601 | E26: =SUM(E27:E28) -> 159 | F26: =SUM(F27:F28) -> 131 | G26: 1 | H26: 1 | I26: 82 | J26: 67 | K26: 12 | L26: 9 | M26: 11 | N26: 11 | O26: 50 | P26: 58 | Q26: 3 | R26: 0 | S26: 0 | T26: 0 | U26: 0 | V26: 2 | W26: 3 | X26: 0 | Y26: 0 | Z26: 1 | AA26: 0 | AB26: 0 | AC26: 소계 | AD26: =SUM(AD27:AD28) -> 1,294 | AE26: =SUM(AE27:AE28) -> 1,261 | AF26: -33 | AG26: -3%
C27: 08~11 | D27: 306 | E27: 71 | F27: 60 | G27: 1 | H27: 0 | I27: 40 | J27: 38 | K27: 9 | L27: 8 | M27: 4 | N27: 4 | O27: 30 | P27: 37 | Q27: 1 | R27: 0 | S27: 0 | T27: 0 | U27: 0 | V27: 1 | W27: 2 | X27: 0 | AC27: 주간 07~19 | AD27: 1,174 | AE27: 1,168 | AF27: -6 | AG27: -1%
C28: 15~18 | D28: 295 | E28: 88 | F28: 71 | G28: 0 | H28: 1 | I28: 42 | J28: 29 | K28: 3 | L28: 1 | M28: 7 | N28: 7 | O28: 20 | P28: 21 | Q28: 2 | R28: 0 | S28: 0 | T28: 0 | U28: 0 | V28: 1 | W28: 1 | X28: 0 | Y28: 0 | Z28: 1 | AA28: 0 | AB28: 0 | AC28: 야간 19~07 | AD28: 120 | AE28: 93 | AF28: -27 | AG28: -23%
A29: 11호 | B29: 36-02-08 (덕양-연화) 가나건축자재 앞 | C29: 소계 | D29: 858 | E29: =SUM(E30:E31) -> 200 | F29: =SUM(F30:F31) -> 252 | G29: 9 | H29: 7 | I29: 62 | J29: 44 | K29: 4 | L29: 2 | M29: 131 | N29: 109 | O29: 6 | P29: 3 | Q29: 5 | R29: 1 | S29: 0 | T29: 0 | U29: 0 | V29: 0 | W29: 1 | X29: 1 | Y29: 13 | Z29: 8 | AA29: 0 | AB29: 0 | AC29: 소계 | AD29: =SUM(AD30:AD31) -> 1,565 | AE29: =SUM(AE30:AE31) -> 1,686 | AF29: 121 | AG29: =AF29/AD29 -> 8%
C30: 08~11 | D30: 471 | E30: 109 | F30: 95 | G30: 6 | H30: 4 | I30: 31 | J30: 22 | K30: 4 | L30: 2 | M30: 91 | N30: 71 | O30: 5 | P30: 2 | Q30: 5 | R30: 1 | W30: 1 | X30: 1 | Y30: 13 | Z30: 8 | AA30: 0 | AB30: 0 | AC30: 주간 07~19 | AD30: 1,414 | AE30: 1,554 | AF30: 140 | AG30: =AF30/AD30 -> 10%
C31: 15~18 | D31: 387 | E31: 91 | F31: 157 | G31: 3 | H31: 3 | I31: 31 | J31: 22 | K31: 0 | L31: 0 | M31: 40 | N31: 38 | O31: 1 | P31: 1 | AC31: 야간 19~07 | AD31: 151 | AE31: 132 | AF31: -19 | AG31: =AF31/AD31 -> -13%
A32: 12호 | B32: 36-02-09 (달천-신흥) | C32: 소계 | D32: 275 | E32: =SUM(E33:E34) -> 0 | F32: =SUM(F33:F34) -> 0 | G32: 144 | H32: 115 | I32: 6 | J32: 8 | K32: 0 | L32: 0 | M32: 2 | N32: 0 | O32: 0 | P32: 0 | Q32: 0 | R32: 0 | S32: 0 | T32: 0 | U32: 0 | V32: 0 | W32: 0 | X32: 0 | Y32: 0 | Z32: 0 | AA32: 0 | AB32: 0 | AC32: 소계 | AD32: =SUM(AD33:AD34) -> 1,001 | AE32: =SUM(AE33:AE34) -> 646 | AF32: -355 | AG32: -35%
C33: 08~11 | D33: 116 | G33: 55 | H33: 52 | I33: 3 | J33: 4 | K33: 0 | L33: 0 | M33: 2 | N33: 0 | AC33: 주간 07~19 | AD33: 874 | AE33: 560 | AF33: -314 | AG33: -36%
C34: 15~18 | D34: 159 | G34: 89 | H34: 63 | I34: 3 | J34: 4 | AC34: 야간 19~07 | AD34: 127 | AE34: 86 | AF34: -41 | AG34: -32%
A35: 14호 | B35: 36-02-10 (신풍-애양) 구암리사무소 앞 | C35: 소계 | D35: 754 | E35: =SUM(E36:E37) -> 318 | F35: =SUM(F36:F37) -> 283 | G35: 16 | H35: 13 | I35: 57 | J35: 50 | K35: 11 | L35: 6 | M35: 0 | N35: 0 | O35: 0 | P35: 0 | Q35: 0 | R35: 0 | S35: 0 | T35: 0 | U35: 0 | V35: 0 | W35: 0 | X35: 0 | Y35: 0 | Z35: 0 | AA35: 0 | AB35: 0 | AC35: 소계 | AD35: =SUM(AD36:AD37) -> 1,944 | AE35: =SUM(AE36:AE37) -> 1,465 | AF35: -479 | AG35: -25%
C36: 08~11 | D36: 423 | E36: 209 | F36: 130 | G36: 10 | H36: 7 | I36: 28 | J36: 29 | K36: 7 | L36: 3 | AC36: 주간 07~19 | AD36: 1,603 | AE36: 1,288 | AF36: -315 | AG36: -20%
C37: 15~18 | D37: 331 | E37: 109 | F37: 153 | G37: 6 | H37: 6 | I37: 29 | J37: 21 | K37: 4 | L37: 3 | AC37: 야간 19~07 | AD37: 341 | AE37: 177 | AF37: -164 | AG37: -48%
A38: 15호 | B38: 36-02-11 (조화-연화) 하나라마트 앞 | C38: 소계 | D38: 1,087 | E38: =SUM(E39:E40) -> 394 | F38: =SUM(F39:F40) -> 303 | G38: 32 | H38: 29 | I38: 141 | J38: 119 | K38: 20 | L38: 19 | M38: 11 | N38: 5 | O38: 5 | P38: 1 | Q38: 2 | R38: 2 | S38: 1 | T38: 1 | U38: 0 | V38: 0 | W38: 1 | X38: 1 | Y38: 0 | Z38: 0 | AA38: 0 | AB38: 0 | AC38: 소계 | AD38: =SUM(AD39:AD40) -> 2,263 | AE38: =SUM(AE39:AE40) -> 2,255 | AF38: -8 | AG38: -0%
C39: 08~11 | D39: 530 | E39: 201 | F39: 147 | G39: 14 | H39: 14 | I39: 65 | J39: 49 | K39: 10 | L39: 12 | M39: 8 | N39: 3 | O39: 2 | P39: 1 | Q39: 1 | R39: 0 | S39: 1 | T39: 0 | U39: 0 | V39: 0 | W39: 1 | X39: 1 | Y39: 0 | Z39: 0 | AA39: 0 | AB39: 0 | AC39: 주간 07~19 | AD39: 1,968 | AE39: 1,913 | AF39: -55 | AG39: -3%
C40: 15~18 | D40: 557 | E40: 193 | F40: 156 | G40: 18 | H40: 15 | I40: 76 | J40: 70 | K40: 10 | L40: 7 | M40: 3 | N40: 2 | O40: 3 | P40: 0 | Q40: 1 | R40: 2 | S40: 0 | T40: 1 | AC40: 야간 19~07 | AD40: 295 | AE40: 342 | AF40: 47 | AG40: 16%
A41: 16호 | B41: 36-02-12 (상봉-여흥) 월산리사무소 앞 | C41: 소계 | D41: 1,814 | E41: =SUM(E42:E43) -> 510 | F41: =SUM(F42:F43) -> 554 | G41: 15 | H41: 19 | I41: 167 | J41: 202 | K41: 35 | L41: 31 | M41: 40 | N41: 40 | O41: 29 | P41: 37 | Q41: 37 | R41: 46 | S41: 1 | T41: 1 | U41: 1 | V41: 2 | W41: 16 | X41: 28 | Y41: 1 | Z41: 1 | AA41: 1 | AB41: 0 | AC41: 소계 | AD41: =SUM(AD42:AD43) -> 3,569 | AE41: =SUM(AE42:AE43) -> 3,825 | AF41: 256 | AG41: 7%
C42: 08~11 | D42: 885 | E42: 217 | F42: 263 | G42: 8 | H42: 10 | I42: 80 | J42: 98 | K42: 25 | L42: 18 | M42: 28 | N42: 25 | O42: 18 | P42: 13 | Q42: 31 | R42: 21 | S42: 1 | T42: 1 | U42: 1 | V42: 1 | W42: 12 | X42: 12 | Y42: 1 | Z42: 1 | AC42: 주간 07~19 | AD42: 3,059 | AE42: 3,253 | AF42: 194 | AG42: 6%
C43: 15~18 | D43: 929 | E43: 293 | F43: 291 | G43: 7 | H43: 9 | I43: 87 | J43: 104 | K43: 10 | L43: 13 | M43: 12 | N43: 15 | O43: 11 | P43: 24 | Q43: 6 | R43: 25 | S43: 0 | T43: 0 | U43: 0 | V43: 1 | W43: 4 | X43: 16 | Y43: 0 | Z43: 0 | AA43: 1 | AB43: 0 | AC43: 야간 19~07 | AD43: 510 | AE43: 572 | AF43: 62 | AG43: 12%
A44: 17호 | B44: 36-02-13 (나진-창무) 화양중 앞 | C44: 소계 | D44: 470 | E44: =SUM(E45:E46) -> 189 | F44: =SUM(F45:F46) -> 197 | G44: 17 | H44: 16 | I44: 17 | J44: 14 | K44: 0 | L44: 0 | M44: 1 | N44: 0 | O44: 10 | P44: 9 | Q44: 0 | R44: 0 | S44: 0 | T44: 0 | U44: 0 | V44: 0 | W44: 0 | X44: 0 | Y44: 0 | Z44: 0 | AA44: 0 | AB44: 0 | AC44: 소계 | AD44: =SUM(AD45:AD46) -> 751 | AE44: =SUM(AE45:AE46) -> 817 | AF44: 66 | AG44: 9%
C45: 08~11 | D45: 187 | E45: 47 | F45: 83 | G45: 4 | H45: 6 | I45: 14 | J45: 14 | K45: 0 | L45: 0 | M45: 0 | N45: 0 | O45: 10 | P45: 9 | AC45: 주간 07~19 | AD45: 667 | AE45: 736 | AF45: 69 | AG45: 10%
C46: 15~18 | D46: 283 | E46: 142 | F46: 114 | G46: 13 | H46: 10 | I46: 3 | J46: 0 | K46: 0 | L46: 0 | M46: 1 | N46: 0 | AC46: 야간 19~07 | AD46: 84 | AE46: 81 | AF46: -3 | AG46: -4%
A47: 18호 | B47: 36-02-14 (용주-소호) 용주마을 입구 | C47: 소계 | D47: 2,248 | E47: =SUM(E48:E49) -> 997 | F47: =SUM(F48:F49) -> 853 | G47: 14 | H47: 13 | I47: 172 | J47: 150 | K47: 0 | L47: 2 | M47: 22 | N47: 25 | O47: 0 | P47: 0 | Q47: 0 | R47: 0 | S47: 0 | T47: 0 | U47: 0 | V47: 0 | W47: 0 | X47: 0 | Y47: 0 | Z47: 0 | AA47: 0 | AB47: 0 | AC47: 소계 | AD47: =SUM(AD48:AD49) -> 4,433 | AE47: =SUM(AE48:AE49) -> 5,118 | AF47: 685 | AG47: 15%
C48: 08~11 | D48: 1,040 | E48: 308 | F48: 501 | G48: 7 | H48: 7 | I48: 88 | J48: 87 | K48: 0 | L48: 1 | M48: 20 | N48: 21 | AC48: 주간 07~19 | AD48: 3,562 | AE48: 4,146 | AF48: 584 | AG48: 16%
C49: 15~18 | D49: 1,208 | E49: 689 | F49: 352 | G49: 7 | H49: 6 | I49: 84 | J49: 63 | K49: 0 | L49: 1 | M49: 2 | N49: 4 | AC49: 야간 19~07 | AD49: 871 | AE49: 972 | AF49: 101 | AG49: 12%
A50: 21호 | B50: 36-02-15 (세포-서촌) 산전교회 인근 | C50: 소계 | D50: 154 | E50: =SUM(E51:E52) -> 48 | F50: =SUM(F51:F52) -> 49 | G50: 6 | H50: 5 | I50: 21 | J50: 23 | K50: 1 | L50: 1 | M50: 0 | N50: 0 | O50: 0 | P50: 0 | Q50: 0 | R50: 0 | S50: 0 | T50: 0 | U50: 0 | V50: 0 | W50: 0 | X50: 0 | Y50: 0 | Z50: 0 | AA50: 0 | AB50: 0 | AC50: 소계 | AD50: =SUM(AD51:AD52) -> 404 | AE50: =SUM(AE51:AE52) -> 317 | AF50: -87 | AG50: -22% | AH50: 신규
C51: 08~11 | D51: 62 | E51: 14 | F51: 23 | G51: 3 | H51: 2 | I51: 10 | J51: 9 | K51: 0 | L51: 1 | AC51: 주간 07~19 | AD51: 343 | AE51: 281 | AF51: -62 | AG51: -18%
C52: 15~18 | D52: 92 | E52: 34 | F52: 26 | G52: 3 | H52: 3 | I52: 11 | J52: 14 | K52: 1 | L52: 0 | AC52: 야간 19~07 | AD52: 61 | AE52: 36 | AF52: -25 | AG52: -41%
A53: 20호 | B53: 36-02-16 (우학-송고) 우실경로당 앞 | C53: 소계 | D53: 262 | E53: =SUM(E54:E55) -> 75 | F53: =SUM(F54:F55) -> 82 | G53: 16 | H53: 16 | I53: 33 | J53: 33 | K53: 4 | L53: 3 | M53: 0 | N53: 0 | O53: 0 | P53: 0 | Q53: 0 | R53: 0 | S53: 0 | T53: 0 | U53: 0 | V53: 0 | W53: 0 | X53: 0 | Y53: 0 | Z53: 0 | AA53: 0 | AB53: 0 | AC53: 소계 | AD53: =SUM(AD54:AD55) -> 805 | AE53: =SUM(AE54:AE55) -> 603 | AF53: -202 | AG53: -25%
C54: 08~11 | D54: 134 | E54: 40 | F54: 39 | G54: 8 | H54: 9 | I54: 19 | J54: 15 | K54: 3 | L54: 1 | AC54: 주간 07~19 | AD54: 666 | AE54: 506 | AF54: -160 | AG54: -24%
C55: 15~18 | D55: 128 | E55: 35 | F55: 43 | G55: 8 | H55: 7 | I55: 14 | J55: 18 | K55: 1 | L55: 2 | AC55: 야간 19~07 | AD55: 139 | AE55: 97 | AF55: -42 | AG55: -30%
A56: 6호 | B56: 36-02-17 (호령-신흥) 개도주조장 앞 | C56: 소계 | D56: 202 | E56: =SUM(E57:E58) -> 43 | F56: =SUM(F57:F58) -> 51 | G56: 3 | H56: 3 | I56: 54 | J56: 47 | K56: 0 | L56: 1 | M56: 0 | N56: 0 | O56: 0 | P56: 0 | Q56: 0 | R56: 0 | S56: 0 | T56: 0 | U56: 0 | V56: 0 | W56: 0 | X56: 0 | Y56: 0 | Z56: 0 | AA56: 0 | AB56: 0 | AC56: 소계 | AD56: =SUM(AD57:AD58) -> 559 | AE56: =SUM(AE57:AE58) -> 530 | AF56: -29 | AG56: -5%
C57: 08~11 | D57: 87 | E57: 20 | F57: 15 | G57: 1 | H57: 0 | I57: 22 | J57: 29 | AC57: 주간 07~19 | AD57: 433 | AE57: 410 | AF57: -23 | AG57: -5%
C58: 15~18 | D58: 115 | E58: 23 | F58: 36 | G58: 2 | H58: 3 | I58: 32 | J58: 18 | K58: 0 | L58: 1 | AC58: 야간 19~07 | AD58: 126 | AE58: 120 | AF58: -6 | AG58: -5%
A59: 22호 | B59: 36-02-18 (거문-죽촌) 삼호교횟집 앞 | C59: 소계 | D59: 288 | E59: =SUM(E60:E61) -> 90 | F59: =SUM(F60:F61) -> 109 | G59: 5 | H59: 5 | I59: 32 | J59: 34 | K59: 4 | L59: 8 | M59: 1 | N59: 0 | O59: 0 | P59: 0 | Q59: 0 | R59: 0 | S59: 0 | T59: 0 | U59: 0 | V59: 0 | W59: 0 | X59: 0 | Y59: 0 | Z59: 0 | AA59: 0 | AB59: 0 | AC59: 소계 | AD59: =SUM(AD60:AD61) -> 805 | AE59: =SUM(AE60:AE61) -> 593 | AF59: -212 | AG59: -26%
C60: 08~11 | D60: 145 | E60: 51 | F60: 56 | G60: 4 | H60: 2 | I60: 18 | J60: 12 | K60: 1 | L60: 0 | M60: 1 | N60: 0 | P60: 0 | Q60: 0 | R60: 0 | S60: 0 | T60: 0 | U60: 0 | V60: 0 | W60: 0 | X60: 0 | Y60: 0 | Z60: 0 | AA60: 0 | AB60: 0 | AC60: 주간 07~19 | AD60: 666 | AE60: 510 | AF60: -156 | AG60: -23%
C61: 15~18 | D61: 143 | E61: 39 | F61: 53 | G61: 1 | H61: 3 | I61: 14 | J61: 22 | K61: 3 | L61: 8 | P61: 0 | Q61: 0 | R61: 0 | S61: 0 | T61: 0 | U61: 0 | V61: 0 | W61: 0 | X61: 0 | Y61: 0 | Z61: 0 | AA61: 0 | AB61: 0 | AC61: 야간 19~07 | AD61: 139 | AE61: 83 | AF61: -56 | AG61: -40%
